bitfinex/quotes_SOLUSD_20240712
["timestamp","ask_amount","ask_price","bid_price","bid_amount"]
[1720790928989,10.0,137.84,137.75,15.3083]
[1720790929473,17.2551,137.84,137.75,15.3083]
[1720790929675,45.0,137.83,137.75,15.3083]
[1720790930000,17.2559,137.82,137.75,15.3083]
[1720790931996,10.0,137.82,137.75,15.3083]
[1720790932780,17.2559,137.82,137.76,0.99379676]
[1720790933283,10.0,137.82,137.76,0.99379676]
[1720790933481,10.0,137.82,137.75,15.3083]
[1720790933683,10.0,137.8,137.75,15.3083]
[1720790934068,59.39370108,137.79,137.75,15.3083]
[1720790934300,52.2575,137.79,137.75,15.3083]
[1720790934480,45.0,137.79,137.75,15.3083]
[1720790936073,10.0,137.8,137.75,15.3083]
[1720790936293,10.0,137.82,137.75,15.3083]
[1720790936501,7.13578941,137.81,137.75,15.3083]
[1720790936797,7.2556,137.83,137.76,0.43261088]
[1720790937004,24.39108933,137.82,137.75,15.3083]
[1720790937303,7.13508933,137.81,137.76,1.45154079]
[1720790938178,14.39088933,137.82,137.76,1.45154079]
[1720790938511,7.2563,137.81,137.76,1.45154079]
[1720790938688,17.2568,137.8,137.75,15.3083]
[1720790938889,7.2576,137.79,137.75,15.3083]
[1720790939075,17.257,137.8,137.75,15.3083]
[1720790939278,7.257,137.8,137.75,15.3083]
[1720790939714,7.2574,137.79,137.75,15.3083]
[1720790940217,10.0,137.82,137.75,15.3083]
[1720790940389,59.39213026,137.81,137.75,15.3083]
[1720790940591,52.2567,137.81,137.75,15.3083]
[1720790940793,7.2571,137.8,137.75,15.3083]
[1720790941002,7.2576,137.79,137.75,15.3083]
[1720790941302,45.0,137.81,137.75,15.3083]
[1720790941507,14.39269996,137.8,137.75,15.3083]
[1720790941711,17.2559,137.82,137.76,1.4516258]
[1720790941902,7.13556012,137.81,137.76,1.4516258]
[1720790942100,17.2559,137.82,137.76,1.4516258]
[1720790942302,7.13548403,137.81,137.76,1.4516258]
[1720790942484,7.2563,137.81,137.76,1.4516258]
[1720790942686,17.256,137.82,137.76,1.4516258]
[1720790942885,7.13536785,137.81,137.76,1.4516258]
[1720790943187,7.256,137.82,137.76,1.4516258]
[1720790943386,7.13534532,137.81,137.76,1.4516258]
[1720790943607,7.13536983,137.8,137.75,15.3083]
[1720790943827,7.2566,137.81,137.76,1.45150845]
[1720790944127,7.2566,137.81,137.75,15.3083]
[1720790944300,17.256,137.82,137.75,15.3083]
[1720790944504,7.256,137.82,137.76,0.94347915]
[1720790944727,7.13534588,137.81,137.77,6.1008]
[1720790945026,7.2559,137.82,137.78,0.98789771]
[1720790945328,7.2555,137.83,137.78,0.98789771]
[1720790945533,7.13498891,137.82,137.78,0.98789771]
[1720790945715,7.13529425,137.81,137.77,6.1008]
[1720790945920,10.0,137.84,137.77,6.1008]
[1720790946110,7.13525169,137.83,137.77,6.1008]
[1720790946313,7.13525169,137.82,137.77,6.1008]
[1720790946505,7.2556,137.83,137.77,6.1008]
[1720790946725,7.13502795,137.82,137.77,6.1008]
[1720790946908,7.2554,137.83,137.77,6.1008]
[1720790947105,10.0,137.84,137.77,6.1008]
[1720790947510,7.2567,137.81,137.77,6.1008]
[1720790948113,7.256,137.82,137.77,6.1008]
[1720790948415,7.2561,137.82,137.77,6.1008]
[1720790949141,52.2555,137.83,137.77,6.1008]
[1720790949305,7.2558,137.82,137.77,6.1008]
[1720790949825,7.2558,137.82,137.75,15.3083]
[1720790949826,10.0,137.82,137.75,15.3083]
[1720790950208,17.256,137.82,137.75,15.3083]
[1720790950404,45.0,137.83,137.75,15.3083]
[1720790950607,52.2554,137.83,137.75,15.3083]
[1720790950830,7.2564,137.81,137.75,15.3083]
[1720790951711,10.0,137.82,137.75,15.3083]
[1720790951712,7.257,137.8,137.75,15.3083]
[1720790952407,17.2561,137.82,137.75,15.3083]
[1720790952608,69.1563,137.81,137.76,16.9]
[1720790952910,7.2563,137.81,137.76,16.9]
[1720790953425,10.0,137.8,137.75,32.2083]
[1720790953634,17.2571,137.8,137.75,32.2083]
[1720790953835,17.2571,137.8,137.76,16.9]
[1720790954215,17.2562,137.82,137.76,16.9]
[1720790954429,34.1562,137.82,137.77,16.9]
[1720790954614,7.2565,137.81,137.75,15.3083]
[1720790955640,17.256,137.82,137.75,15.3083]
[1720790956439,10.0,137.84,137.75,15.3083]
[1720790956735,45.0,137.83,137.75,15.3083]
[1720790957041,7.03163825,137.82,137.75,15.3083]
[1720790957418,7.03163912,137.81,137.75,15.3083]
[1720790957618,7.03163912,137.8,137.75,15.3083]
[1720790957920,7.2558,137.82,137.75,15.3083]
[1720790958122,7.03165784,137.81,137.75,15.3083]
[1720790958417,7.03165784,137.8,137.75,15.3083]
[1720790958623,7.03165784,137.79,137.75,15.3083]
[1720790959438,7.03165784,137.8,137.75,15.3083]
[1720790959639,10.0,137.85,137.75,15.3083]
[1720790959847,14.28591666,137.84,137.76,20.0]
[1720790960039,7.03081666,137.83,137.76,20.0]
[1720790960542,7.2551,137.84,137.76,20.0]
[1720790960730,7.03093092,137.83,137.76,20.0]
[1720790960946,7.03093092,137.82,137.76,20.0]
[1720790961144,7.2551,137.84,137.76,20.0]
[1720790961343,7.0309306,137.83,137.76,20.0]
[1720790961550,7.0309306,137.82,137.76,20.0]
[1720790961847,7.2551,137.84,137.76,20.0]
[1720790962047,7.03093005,137.83,137.76,20.0]
[1720790962269,7.03093005,137.82,137.76,20.0]
[1720790962545,7.03093005,137.83,137.76,20.0]
[1720790962732,7.03093005,137.82,137.76,20.0]
[1720790962931,7.03093005,137.84,137.76,20.0]
[1720790963136,7.03093005,137.83,137.76,20.0]
[1720790963333,7.03093005,137.82,137.76,20.0]
[1720790963542,7.03093005,137.81,137.76,20.0]
[1720790963751,7.03093005,137.83,137.76,20.0]
[1720790963947,17.2544,137.85,137.76,20.0]
[1720790964256,7.03066935,137.84,137.76,20.0]
[1720790964455,7.03066793,137.83,137.76,20.0]
[1720790964626,7.03066793,137.82,137.76,20.0]
[1720790964829,7.03066793,137.84,137.76,20.0]
[1720790965040,7.03066793,137.83,137.77,22.3844]
[1720790965247,7.03048796,137.82,137.77,22.3844]
[1720790965450,17.2544,137.85,137.77,22.3844]
[1720790965753,14.28538622,137.84,137.77,22.3844]
[1720790965951,7.03048622,137.83,137.77,22.3844]
[1720790966363,7.03081586,137.82,137.77,22.3844]
[1720790966542,17.2543,137.85,137.77,22.3844]
[1720790966725,7.03058808,137.84,137.77,22.3844]
[1720790967045,7.03058808,137.83,137.77,22.3844]
[1720790967252,7.03087575,137.82,137.78,0.66626646]
[1720790967454,7.2551,137.84,137.78,0.66626646]
[1720790967620,14.28580617,137.83,137.78,1.45128911]
[1720790967964,7.03050617,137.82,137.77,22.3844]
[1720790969251,7.03050617,137.83,137.78,1.45128467]
[1720790969450,7.03050617,137.84,137.78,1.45128467]
[1720790969628,7.03043868,137.83,137.78,1.45128467]
[1720790969941,7.03064564,137.82,137.78,1.45128467]
[1720790970144,17.2544,137.85,137.78,1.45128467]
[1720790970352,7.03064651,137.84,137.78,1.45122717]
[1720790970662,10.0,137.87,137.79,16.2554]
[1720790970955,7.02975251,137.86,137.8,1.45093505]
[1720790971127,0.8476585,137.88,137.81,6.54]
[1720790971337,7.02896013,137.87,137.83,15.1864]
[1720790971636,0.8476585,137.88,137.84,1.45052422]
[1720790972236,10.8476585,137.88,137.83,15.1864]
[1720790972558,7.254,137.86,137.83,15.1864]
[1720790972729,10.8476585,137.88,137.83,15.1864]
[1720790973052,7.2538,137.86,137.83,15.1864]
[1720790973646,7.2534,137.87,137.83,15.1864]
[1720790973974,14.28306763,137.86,137.83,15.1864]
[1720790974162,7.2539,137.86,137.83,15.1864]
[1720790974965,17.2539,137.86,137.83,15.1864]
[1720790975167,7.2542,137.85,137.83,15.1864]
[1720790975370,7.2539,137.86,137.83,15.1864]
[1720790975669,7.2542,137.85,137.78,15.1071]
[1720790975874,24.28558475,137.84,137.78,15.1071]
[1720790976076,7.2559,137.82,137.78,15.1071]
[1720790976239,7.2554,137.83,137.78,15.1071]
[1720790976444,7.2549,137.84,137.78,15.1071]
[1720790976745,7.03083421,137.83,137.79,16.89]
[1720790976949,16.89,137.85,137.8,18.34084422]
[1720790977281,7.03082666,137.84,137.81,16.89]
[1720790977463,34.1438,137.86,137.81,16.89]
[1720790977662,7.0305062,137.85,137.82,16.89]
[1720790977848,7.2538,137.86,137.82,16.89]
[1720790978050,7.03020097,137.85,137.82,16.89]
[1720790978262,7.2538,137.86,137.82,16.89]
[1720790978466,7.03015809,137.85,137.82,16.89]
[1720790978669,7.2538,137.86,137.82,16.89]
[1720790978871,7.03015722,137.85,137.82,16.89]
[1720790979050,14.28525809,137.84,137.8,16.89]
[1720790979248,24.1444,137.85,137.8,16.89]
[1720790979454,14.28530128,137.84,137.81,16.89]
[1720790979758,7.2544,137.85,137.81,16.89]
[1720790979964,14.28534789,137.84,137.81,16.89]
[1720790980161,7.2549,137.84,137.81,16.89]
[1720790980560,7.2549,137.84,137.8,16.89]
[1720790982643,10.0,137.86,137.78,15.1071]
[1720790982845,7.03055169,137.85,137.81,16.89]
[1720790983077,7.03055169,137.84,137.81,16.89]
[1720790983273,7.254,137.86,137.81,16.89]
[1720790983580,7.03020097,137.85,137.81,16.89]
[1720790983760,7.2544,137.85,137.81,16.89]
[1720790984661,13.85537985,137.88,137.81,16.89]
[1720790984870,14.28370184,137.87,137.82,16.89]
[1720790985059,14.28400184,137.86,137.82,16.89]
[1720790985372,14.28450184,137.85,137.82,16.89]
[1720790985579,7.2543,137.85,137.81,16.89]
[1720790985889,7.2543,137.85,137.82,16.89]
[1720790986053,7.2542,137.85,137.81,16.89]
[1720790986383,7.2536,137.87,137.82,16.89]
[1720790986560,7.03015675,137.86,137.82,16.89]
[1720790986759,7.2539,137.86,137.82,16.89]
[1720790986965,7.03011295,137.85,137.82,16.89]
[1720790987275,16.89,137.87,137.82,16.89]
[1720790987276,7.2533,137.87,137.82,16.89]
[1720790987467,7.02988318,137.86,137.82,16.89]
[1720790987667,7.02988318,137.85,137.82,16.89]
[1720790987867,7.2538,137.86,137.82,16.89]
[1720790988061,7.02984677,137.85,137.81,16.89]
[1720790988265,7.2538,137.86,137.81,16.89]
[1720790988559,7.02987213,137.85,137.81,16.89]
[1720790988763,16.89,137.87,137.81,16.89]
[1720790988972,7.02954072,137.86,137.82,16.89]
[1720790989176,24.1432,137.87,137.82,16.89]
[1720790989484,7.02949086,137.86,137.83,16.89]
[1720790989657,37.99827985,137.88,137.83,16.89]
[1720790989858,7.02947862,137.87,137.83,16.89]
[1720790990072,37.99827985,137.88,137.83,16.89]
[1720790990356,7.02888129,137.87,137.83,16.89]
[1720790990555,37.99827985,137.88,137.83,16.89]
[1720790991390,34.9905585,137.88,137.84,16.1609]
[1720790991563,18.1005585,137.88,137.84,16.1609]
[1720790991764,34.9905585,137.88,137.84,16.1609]
[1720790992072,18.1005585,137.88,137.84,16.1609]
[1720790992770,8.1005585,137.88,137.84,16.1609]
[1720790993657,0.8476585,137.88,137.84,33.0509]
[1720790993855,8.1002585,137.88,137.84,33.0509]
[1720790994482,8.1002585,137.88,137.84,16.1609]
[1720790994956,0.8476585,137.88,137.84,16.1609]
[1720790995290,0.8476585,137.88,137.84,33.0509]
[1720790997174,8.1003585,137.88,137.84,33.0509]
[1720790997687,0.8476585,137.88,137.84,33.0509]
[1720790998570,0.8476585,137.88,137.84,16.1609]
[1720790998771,7.2533,137.87,137.84,16.1609]
[1720790998996,8.1005585,137.88,137.84,16.1609]
[1720791000099,0.8476585,137.88,137.84,16.1609]
[1720791000276,0.8476585,137.88,137.84,33.0509]
[1720791000807,7.2533,137.87,137.84,16.1609]
[1720791000969,17.7376585,137.88,137.84,16.1609]
[1720791001173,16.89,137.85,137.81,15.55]
[1720791001379,0.8476585,137.88,137.82,16.89]
[1720791001587,24.1432,137.87,137.82,18.33882984]
[1720791001874,24.1432,137.87,137.81,15.55]
[1720791001875,24.9904585,137.88,137.83,18.34078889]
[1720791002094,0.8476585,137.88,137.82,16.89]
[1720791002392,16.89,137.87,137.82,16.89]
[1720791002604,24.1433,137.87,137.82,16.89]
[1720791002808,16.89,137.87,137.82,16.89]
[1720791003298,7.2535,137.87,137.81,15.55]
[1720791003498,16.89,137.87,137.81,32.44]
[1720791003707,31.17346636,137.86,137.81,32.44]
[1720791003874,24.144,137.86,137.81,32.44]
[1720791004077,7.2543,137.85,137.81,15.55]
[1720791004291,0.8476585,137.88,137.84,16.89]
[1720791004509,0.8476585,137.88,137.85,0.66914653]
[1720791004682,0.8476585,137.88,137.85,16.89]
[1720791005491,7.2537,137.86,137.81,15.55]
[1720791005804,16.89,137.87,137.82,17.97517914]
[1720791005993,24.1433,137.87,137.82,1.08517914]
[1720791006183,16.89,137.87,137.82,17.97517914]
[1720791006383,16.89,137.87,137.82,16.89]
[1720791006579,0.8476585,137.88,137.83,23.18316185]
[1720791006780,0.8476585,137.88,137.84,16.89]
[1720791006980,0.8476585,137.88,137.84,0.9781531]
[1720791007191,0.8476585,137.88,137.84,18.34060352]
[1720791008211,0.8476585,137.88,137.86,16.89]
[1720791008503,0.8476585,137.88,137.87,1.45028787]
[1720791009091,0.8476585,137.88,137.87,18.34028787]
[1720791009385,0.8476585,137.88,137.87,32.4695]
[1720791011189,0.8476585,137.88,137.87,15.5795]
[1720791011388,0.8476585,137.88,137.87,33.91963912]
[1720791011588,0.8476585,137.88,137.87,53.91963912]
[1720791011809,0.8476585,137.88,137.87,37.02963912]
[1720791011978,0.8476585,137.88,137.87,53.91963912]
[1720791012599,0.8476585,137.88,137.87,98.91963912]
[1720791013214,0.8476585,137.88,137.87,37.02963912]
[1720791013422,0.8476585,137.88,137.87,53.91963912]
[1720791013897,0.8476585,137.88,137.87,98.91963912]
[1720791014286,267.2478,137.98,137.88,6.0193]
[1720791014486,7.0254684,137.97,137.92,16.89]
[1720791014689,24.138,137.97,137.93,1.44975785]
[1720791014996,14.27396159,137.96,137.91,16.89]
[1720791015193,16.89,137.97,137.9,16.89]
[1720791015194,16.89,137.95,137.9,16.89]
[1720791015393,16.89,137.95,137.89,16.89]
[1720791015588,7.2495,137.94,137.89,16.89]
[1720791015784,24.14,137.93,137.88,22.9093]
[1720791016218,10.0,137.95,137.87,20.0]
[1720791016513,16.89,137.92,137.86,16.89]
[1720791016901,52.2497,137.94,137.87,18.34025634]
[1720791017105,16.89,137.93,137.87,18.34025634]
[1720791017302,10.0,137.97,137.87,1.45025634]
[1720791017502,16.89,137.95,137.89,16.89]
[1720791018219,272.88681031,137.98,137.88,15.4162]
[1720791018390,16.89,137.96,137.91,16.89]
[1720791018605,24.1379,137.97,137.91,16.89]
[1720791018803,276.89,137.98,137.92,16.89]
[1720791019019,267.2474,137.98,137.92,16.89]
[1720791019212,260.0,137.98,137.93,18.33967226]
[1720791019431,267.2475,137.98,137.93,18.33967226]
[1720791019612,260.0,137.98,137.88,21.6796]
[1720791019814,16.89,137.96,137.91,16.89]
[1720791020138,24.138,137.97,137.92,1.44977979]
[1720791020320,260.0,137.98,137.92,18.33977979]
[1720791020634,24.1383,137.97,137.92,18.33977979]
[1720791020837,16.89,137.97,137.92,16.89]
[1720791021130,10.0,137.96,137.88,21.6796]
[1720791021317,16.89,137.94,137.89,36.89]
[1720791021718,24.1397,137.94,137.89,20.0]
[1720791021912,7.25,137.93,137.88,21.6796]
[1720791022111,16.89,137.93,137.88,38.5696]
[1720791022535,7.2492,137.95,137.88,38.5696]
[1720791022731,16.89,137.93,137.88,38.5696]
[1720791023512,16.89,137.93,137.88,32.3062]
[1720791023710,16.89,137.93,137.88,15.4162]
[1720791023911,16.89,137.92,137.88,15.4162]
[1720791024843,16.89,137.92,137.85,6.5929]
[1720791024844,16.89,137.91,137.85,22.3919]
[1720791025043,16.89,137.92,137.86,16.89]
[1720791025332,13.3033,137.97,137.9,16.89]
[1720791025534,10.0,137.99,137.93,16.89]
[1720791025723,16.89,137.98,137.94,1.44968157]
[1720791026129,26.89,137.99,137.94,16.89]
[1720791026322,34.1369,137.99,137.94,16.89]
[1720791026515,7.2475,137.98,137.93,16.89]
[1720791026750,7.2475,137.98,137.94,16.89]
[1720791027122,34.137,137.99,137.91,1.44967089]
[1720791027442,16.89,137.99,137.94,16.89]
[1720791027615,16.89,137.99,137.95,1.44925069]
[1720791027817,7.2478,137.98,137.92,1.44961889]
[1720791028045,7.2478,137.98,137.93,18.33963693]
[1720791028244,7.2465,138.0,137.95,16.89]
[1720791028539,16.89,138.0,137.95,16.89]
[1720791028750,16.89,137.99,137.94,16.89]
[1720791028941,24.1372,137.99,137.94,16.89]
[1720791029127,24.1372,137.99,137.93,18.33950607]
[1720791029442,7.2475,137.98,137.93,18.33950607]
[1720791029746,16.89,137.99,137.94,16.89]
[1720791029932,7.2469,137.99,137.95,1.44929591]
[1720791030333,16.89,138.0,137.93,16.89]
[1720791030334,7.248,137.97,137.93,16.89]
[1720791030632,24.1373,137.99,137.93,18.33975978]
[1720791030830,24.1373,137.99,137.94,16.89]
[1720791031034,7.2475,137.98,137.94,16.89]
[1720791031226,10.8476585,138.01,137.93,18.33975978]
[1720791031425,24.1368,138.0,137.94,16.89]
[1720791031621,24.1368,138.0,137.95,18.33952169]
[1720791031845,24.1371,137.99,137.94,16.89]
[1720791032047,7.2475,137.98,137.92,1.44962391]
[1720791032349,7.248,137.97,137.93,16.89]
[1720791032552,24.1385,137.96,137.91,20.0]
[1720791032728,7.248,137.97,137.91,16.89]
[1720791032928,16.89,137.96,137.91,16.89]
[1720791033143,16.89,137.95,137.9,33.306]
[1720791033325,24.1391,137.95,137.9,16.416]
[1720791033538,16.89,137.95,137.9,33.306]
[1720791033736,7.2483,137.97,137.91,16.89]
[1720791033941,16.89,137.96,137.91,16.89]
[1720791034558,7.2483,137.97,137.91,16.89]
[1720791034856,24.1383,137.97,137.91,16.89]
[1720791035037,16.89,137.96,137.91,16.89]
[1720791035439,24.1385,137.96,137.91,16.89]
[1720791035650,32.063,137.99,137.92,16.89]
[1720791035841,24.1375,137.98,137.92,16.89]
[1720791036049,7.2469,137.99,137.93,16.89]
[1720791036351,24.1364,138.0,137.95,16.89]
[1720791037446,16.89,138.0,137.95,16.89]
[1720791037958,0.8476585,138.01,137.96,18.33708219]
[1720791038657,17.7376585,138.01,137.96,18.33708219]
[1720791038856,0.8476585,138.01,137.96,18.33708219]
[1720791039164,0.8476585,138.01,137.97,16.89]
[1720791039467,0.8476585,138.01,137.98,1.44924942]
[1720791039835,0.8476585,138.01,137.95,15.726]
[1720791040050,0.8476585,138.01,137.96,45.0]
[1720791040250,0.8476585,138.01,137.95,15.726]
[1720791040643,0.8476585,138.01,137.96,1.4454806]
[1720791040845,0.8476585,138.01,137.96,46.4454806]
[1720791041469,0.8476585,138.01,137.99,16.89]
[1720791041639,0.8476585,138.01,137.98,16.89]
[1720791041839,0.8476585,138.01,137.99,1.44516634]
[1720791042160,0.8476585,138.01,137.99,18.33804063]
[1720791042338,0.8476585,138.01,137.99,1.44804063]
[1720791042543,0.8476585,138.01,137.99,16.89]
[1720791042754,0.8476585,138.01,137.98,16.89]
[1720791043363,8.0934585,138.01,137.98,16.89]
[1720791043661,8.0934585,138.01,137.95,15.726]
[1720791043662,0.8476585,138.01,137.95,15.726]
[1720791043868,16.89,138.0,137.95,32.616]
[1720791044038,16.89,137.99,137.95,15.726]
[1720791044563,7.2476,137.98,137.95,15.726]
[1720791044744,16.89,137.98,137.93,16.89]
[1720791045276,24.1375,137.98,137.92,16.89]
[1720791045568,24.1375,137.98,137.93,16.89]
[1720791046244,16.89,137.98,137.94,1.44967528]
[1720791046448,24.1371,137.99,137.94,1.44967528]
[1720791046759,7.2471,137.99,137.94,1.44967528]
[1720791047060,10.8476585,138.01,137.92,20.0]
[1720791047647,0.8476585,138.01,137.92,20.0]
[1720791047835,0.8476585,138.01,137.93,45.0]
[1720791048041,0.8476585,138.01,137.94,20.0]
[1720791048348,0.8476585,138.01,137.95,45.0]
[1720791048551,0.8476585,138.01,137.96,36.8374851]
[1720791048753,0.8476585,138.01,137.97,45.0]
[1720791049071,0.8476585,138.01,137.98,1.44904539]
[1720791049252,0.8476585,138.01,137.99,1.44894037]
[1720791050859,0.8476585,138.01,137.99,46.44894037]
[1720791051064,0.8476585,138.01,138.0,20.0]
[1720791051381,0.8476585,138.01,138.0,65.0]
[1720791052242,19.54439664,138.11,138.01,16.2408]
[1720791052442,7.02034855,138.1,138.02,46.44844329]
[1720791052670,7.02034855,138.09,138.02,66.44844329]
[1720791052961,7.2423,138.08,138.02,21.44844329]
[1720791053167,19.54439664,138.11,138.02,21.44844329]
[1720791053372,7.02024619,138.1,138.02,21.44844329]
[1720791053538,7.02024619,138.09,138.02,21.44844329]
[1720791053742,7.242,138.09,138.02,21.44844329]
[1720791053956,7.2422,138.08,138.02,21.44844329]
[1720791054152,7.2427,138.07,138.02,1.44844329]
[1720791055869,7.2422,138.08,138.02,1.44844329]
[1720791056074,19.54439664,138.11,138.02,45.0]
[1720791056272,7.02028737,138.1,138.02,45.0]
[1720791056566,19.54439664,138.11,138.01,16.2408]
[1720791056744,10.0,138.09,138.01,16.2408]
[1720791056945,7.2431,138.07,138.01,16.2408]
[1720791057361,7.2431,138.07,138.02,1.44547596]
[1720791057768,7.2422,138.08,138.03,0.64288973]
[1720791058468,7.2428,138.07,138.01,22.8224]
[1720791058853,7.2423,138.08,138.01,22.8224]
[1720791059171,7.2423,138.08,138.02,45.0]
[1720791059572,7.2427,138.07,138.01,22.8224]
[1720791059909,7.2441,138.05,137.96,15.9975]
[1720791060182,7.2443,138.04,137.96,15.9975]
[1720791060355,7.2439,138.05,137.97,1.44847041]
[1720791060562,7.2449,138.03,137.98,0.59644754]
[1720791060762,18.1068,138.07,137.96,15.9975]
[1720791061054,7.2433,138.06,137.97,21.44894845]
[1720791061259,7.2428,138.07,137.97,20.0]
[1720791061856,10.0,138.1,137.99,33.71]
[1720791062058,2.96659664,138.11,138.02,6.3491]
[1720791062249,14.82509288,138.13,138.03,66.44825263]
[1720791062250,7.02018811,138.1,138.03,66.44825263]
[1720791062450,7.58529288,138.13,138.03,66.44825263]
[1720791062762,14.26017888,138.12,138.03,66.44825263]
[1720791062966,14.26077888,138.11,138.03,66.44825263]
[1720791063150,14.26114601,138.1,138.03,66.44825263]
[1720791063355,7.2427,138.07,138.02,6.3491]
[1720791063566,7.2427,138.07,138.03,1.44870014]
[1720791063782,7.2423,138.08,138.03,1.44870014]
[1720791063979,7.2423,138.08,138.01,15.2863]
[1720791063980,7.2433,138.06,138.01,15.2863]
[1720791064162,7.2432,138.06,138.02,1.28908655]
[1720791064366,7.2428,138.07,138.02,1.28908655]
[1720791064565,7.2421,138.08,138.02,1.28908655]
[1720791064785,10.0,138.09,138.02,1.28908655]
[1720791065087,7.2436,138.06,138.02,1.44698491]
[1720791065270,7.2426,138.08,138.02,1.44698491]
[1720791065687,7.2419,138.09,138.02,1.44698491]
[1720791065992,7.2412,138.1,138.02,1.44698491]
[1720791066171,20.5691183,138.13,138.02,1.44698491]
[1720791066489,7.2411,138.1,138.02,46.44698491]
[1720791066694,7.2407,138.11,138.02,46.44698491]
[1720791066994,7.02013684,138.1,138.03,48.1221]
[1720791067179,17.8087183,138.13,138.04,61.48957526]
[1720791067378,7.0201314,138.12,138.05,1.44688254]
[1720791067682,7.0201314,138.11,138.05,21.44688254]
[1720791067986,7.02004372,138.1,138.05,21.44688254]
[1720791068193,7.2411,138.1,138.05,20.0]
[1720791068371,20.5691183,138.13,138.04,15.0428]
[1720791068569,7.2417,138.09,138.04,15.0428]
[1720791068782,7.2423,138.08,138.04,15.0428]
[1720791069296,7.2428,138.07,138.04,15.0428]
[1720791069484,7.2428,138.07,138.0,22.3901]
[1720791069793,28.102,138.11,138.0,22.3901]
[1720791069994,7.2418,138.09,138.0,22.3901]
[1720791070173,7.2414,138.1,138.0,44.2101]
[1720791070372,7.02024166,138.09,138.0,44.2101]
[1720791070569,18.1003,138.12,138.0,22.3901]
[1720791070868,7.2418,138.09,138.01,65.0]
[1720791071493,7.2412,138.1,138.01,65.0]
[1720791071702,7.2412,138.1,138.02,16.2977]
[1720791071703,7.02009801,138.09,138.02,16.2977]
[1720791071879,10.0,138.12,138.03,45.0]
[1720791072073,7.2433,138.06,138.02,16.2977]
[1720791073491,10.0,138.09,138.02,16.2977]
[1720791073673,14.26323839,138.08,138.02,16.2977]
[1720791073878,7.2427,138.07,138.02,16.2977]
[1720791074269,7.2423,138.08,138.02,16.2977]
[1720791074496,7.2418,138.09,138.02,16.2977]
[1720791074998,7.02036277,138.08,138.02,16.2977]
[1720791075196,7.2412,138.1,138.02,16.2977]
[1720791075399,14.26197211,138.09,138.02,16.2977]
[1720791075708,7.02027211,138.08,138.02,16.2977]
[1720791075876,7.2432,138.07,138.02,16.2977]
[1720791076393,25.68676275,138.12,138.02,16.2977]
[1720791076394,10.0,138.1,138.02,16.2977]
[1720791076599,52.0204736,138.09,138.02,16.2977]
[1720791076787,17.0204736,138.08,138.02,16.2977]
[1720791076988,14.2631736,138.07,138.02,16.2977]
[1720791077190,7.2427,138.07,138.02,16.2977]
[1720791077799,17.2412,138.1,138.02,16.2977]
[1720791077999,7.02027038,138.09,138.02,16.2977]
[1720791078192,7.02027038,138.08,138.02,16.2977]
[1720791078388,7.2418,138.09,138.03,1.44864293]
[1720791078897,7.02015211,138.08,138.03,1.44864293]
[1720791079207,7.2418,138.09,138.03,1.44864293]
[1720791079389,7.02018875,138.08,138.03,1.44864293]
[1720791079591,17.58626275,138.12,138.03,1.44864293]
[1720791079788,7.02014742,138.11,138.03,46.44864293]
[1720791079985,7.02014742,138.1,138.03,46.44864293]
[1720791080199,7.02014742,138.11,138.02,16.2977]
[1720791080392,7.02014742,138.11,138.03,46.44694598]
[1720791080605,7.02014742,138.11,138.04,6.1146]
[1720791080809,7.02014742,138.11,138.05,1.44827716]
[1720791080810,14.26094742,138.11,138.05,1.44827716]